fUST/lending_fUST_20260122
["ID","MTS","AMOUNT","RATE_DAILY","PERIOD"]
[403008301,1769051439933,-151.0,0.0001992,2]
[403008303,1769051439942,-185.146352,0.0001992,2]
[403008305,1769051439951,-185.146352,0.0001992,2]
[403008307,1769051439960,-185.146352,0.0001992,2]
[403008309,1769051439969,-185.146352,0.0001992,2]
[403008311,1769051439979,-151.0,0.0001992,2]
[403008314,1769051439989,-151.0,0.0001992,2]
[403008315,1769051439999,-151.0,0.0001992,2]
[403008317,1769051440008,-151.0,0.0001992,2]
[403008319,1769051440017,-151.0,0.0001992,2]
[403008322,1769051440028,-1000.0,0.0001992,5]
[403008323,1769051440044,-225.203364,0.0001992,2]
[403008325,1769051440063,-225.203364,0.0001992,2]
[403008327,1769051440076,-225.203364,0.0001992,2]
[403008329,1769051440085,-284.896963,0.0001992,2]
[403008331,1769051440095,-225.203358,0.0001992,2]
[403008333,1769051440104,-284.896963,0.0001992,2]
[403008335,1769051440113,-284.896963,0.0001992,2]
[403008337,1769051440122,-284.896964,0.0001992,2]
[403008339,1769051440132,-1043.902989,0.0001992,2]
[403008341,1769051440141,-1043.902989,0.0001992,2]
[403008343,1769051440150,-1043.902989,0.0001992,2]
[403008345,1769051440158,-1043.902994,0.0001992,2]
[403008347,1769051440167,-207.73165,0.0001992,2]
[403008349,1769051440176,-207.73165,0.0001992,2]
[403008351,1769051440186,-207.73165,0.0001992,2]
[403008353,1769051440194,-207.731652,0.0001992,2]
[403008355,1769051440203,-1699.183105,0.0001992,2]
[403008357,1769051440212,-248.334984,0.0001992,2]
[403008359,1769051440221,-156.022285,0.0001992,2]
[403008360,1769051440232,-953.93710143,0.0001992,2]
[403008375,1769051440364,-269.247383,0.00019699,2]
[403008377,1769051440376,-177.933163,0.00019699,2]
[403008379,1769051440385,-447.180546,0.00019699,2]
[403008381,1769051440394,-159.91586658,0.00019699,2]
[403008650,1769051609272,-155.0,0.00010561,2]
[403008651,1769051634122,155.0,0.00010557,2]
[403008652,1769051800750,222.0,0.000154,120]
[403008653,1769051958246,150.0,8.35e-05,2]
[403008654,1769051958663,150.0,8.748e-05,2]
[403008655,1769051959197,150.0,9.145e-05,2]
[403008656,1769051960313,150.0,9.543e-05,2]
[403008657,1769051960509,150.0,9.941e-05,2]
[403008658,1769051960942,150.0,0.00010338,2]
[403008659,1769052120723,155.0,0.00010558,2]
[403008660,1769052152533,150.0,8.403e-05,2]
[403008661,1769052152971,150.0,8.804e-05,2]
[403008662,1769052216952,150.0,8.398e-05,2]
[403008663,1769052217509,150.0,8.798e-05,2]
[403008664,1769052313227,4000.0,0.000153,120]
[403008665,1769052381062,912.0,0.00013341,2]
[403008669,1769052542584,150.0,8.455e-05,2]
[403008670,1769052542987,150.0,8.858e-05,2]
[403008671,1769052543422,150.0,9.261e-05,2]
[403008672,1769052543839,150.0,9.663e-05,2]
[403008673,1769052544254,150.0,0.00010066,2]
[403008674,1769052544654,150.0,0.00010469,2]
[403008675,1769052545089,150.0,0.00010871,2]
[403008676,1769052606451,155.0,0.00010558,2]
[403008677,1769052609488,150.0,8.358e-05,2]
[403008678,1769052609884,150.0,8.756e-05,2]
[403008679,1769052610373,150.0,9.154e-05,2]
[403008680,1769052611287,150.0,9.552e-05,2]
[403008681,1769052611723,150.0,9.95e-05,2]
[403008707,1769052632179,-150.0,0.00013609,2]
[403008708,1769052632190,-500.0,0.00013699,2]
[403008709,1769052632199,-60.33255992,0.00014247,2]
[403008710,1769052632211,-444.32720003,0.00014247,2]
[403008711,1769052632220,-177.0,0.00015609,2]
[403008712,1769052632230,-222.0,0.00016414,2]
[403008713,1769052632240,-166.0,0.00016414,2]
[403008714,1769052632250,-155.0,0.00016414,2]
[403008715,1769052632259,-555.0,0.00016414,2]
[403008716,1769052632270,-159.85840156,0.00016511,2]
[403008717,1769052632279,-166.0,0.00016986,2]
[403008718,1769052632289,-204.0,0.00017609,2]
[403008719,1769052632298,-182.72774559,0.00017665,2]
[403008738,1769052638142,-39.27225441,0.00017665,2]
[403008739,1769052638154,-177.0,0.00017824,5]
[403008740,1769052638166,-160.0,0.00017825,5]
[403008741,1769052638178,-441.79952868,0.00018497,2]
[403008742,1769052638197,-758.20047132,0.00018497,2]
[403008743,1769052638209,-300.0,0.000185,2]
[403008744,1769052638221,-300.0,0.000185,2]
[403008745,1769052638234,-417.0,0.00018501,2]
[403008746,1769052638246,-178.0,0.00018501,2]
[403008747,1769052638257,-2230.315306,0.00018845,2]
[403008748,1769052638269,-1000.0,0.00018908,5]
[403008749,1769052638281,-1000.0,0.000192,2]
[403008750,1769052638294,-159.62665952,0.00019227,2]
[403008751,1769052638305,-2150.738,0.00019393,2]
[403008752,1769052638318,-231.0,0.00019609,2]
[403008753,1769052638330,-221.30430995,0.00019699,2]
[403008754,1769052638342,-159.62665952,0.00019822,2]
[403008755,1769052638354,-514.9685715,0.00019838,2]
[403008756,1769052638365,-1205.0113747,0.00019838,2]
[403008757,1769052638377,-2439.23504829,0.00019838,2]
[403008758,1769052638392,-5020.74664621,0.00019838,2]
[403008759,1769052638407,-170.60456213,0.00019878,2]
[403008760,1769052638419,-500.0,0.00019879,2]
[403008761,1769052638430,-523.37801808,0.00019879,2]
[403008762,1769052638442,-375.00485223,0.00019879,2]
[403008811,1769052640338,-178.18930711,0.00019879,2]
[403008813,1769052640350,-125.40069289,0.00019879,2]
[403008959,1769052643286,-151.23121346,0.00019879,2]
[403008960,1769052643299,-360.08868483,0.00019879,2]
[403008961,1769052643311,-232.96212545,0.00019879,2]
[403008962,1769052643322,-341.16770591,0.0001988,3]
[403008983,1769052646198,-3274.19229409,0.0001988,3]
[403008985,1769052646208,-1807.68,0.0001988,3]
[403008987,1769052646217,-577.44276078,0.0001988,3]
[403008995,1769052646305,-326.39723922,0.0001988,3]
[403008996,1769052646314,-451.92,0.0001988,3]
[403008997,1769052646323,-225.96,0.0001988,3]
[403008998,1769052646331,-677.92,0.0001988,3]
[403008999,1769052646340,-174.644,0.00019889,2]
[403009000,1769052646349,-202.4373138,0.00019889,2]
[403009001,1769052646358,-6421.26150054,0.0001989,2]
[403009013,1769053091925,155.0,0.00010558,2]
[403009015,1769053577545,155.0,0.00010559,2]
[403009016,1769053692955,262.84,0.00013698,2]
[403009045,1769053832197,-500.0,0.00013699,2]
[403009047,1769053832207,-150.0,0.00013733,2]
[403009049,1769053832216,-1000.0,0.00014247,2]
[403009051,1769053832226,-502.67829097,0.00014795,2]
[403009053,1769053832236,-177.0,0.00015733,2]
[403009055,1769053832246,-159.62665952,0.00016521,2]
[403009057,1769053832260,-159.62665952,0.00017032,2]
[403009059,1769053832270,-213.14646246,0.00017733,2]
[403009061,1769053832279,-1000.0,0.00018909,5]
[403009063,1769053832289,-417.0,0.00018991,2]
[403009065,1769053832299,-178.0,0.00018991,2]
[403009067,1769053832308,-2035.9575289,0.00019459,2]
[403009069,1769053832318,-1903.03444001,0.0001958,2]
[403009071,1769053832327,-300.0,0.00019679,2]
[403009073,1769053832337,-300.0,0.00019679,2]
[403009075,1769053832346,-1200.0,0.00019679,2]
[403009077,1769053832356,-35689.54242037,0.0001968,2]
[403009079,1769053832368,-24500.89020221,0.0001968,2]
[403009259,1769053838303,-304.84853604,0.00019679,2]
[403009261,1769053838313,-196.49312527,0.00019679,2]
[403009263,1769053838323,-228.69814145,0.0001968,2]
[403009273,1769053838410,-1700.67543852,0.0001968,2]
[403009277,1769053838464,-4225.14642636,0.0001968,2]
[403009280,1769053838784,-835.45976051,0.0001968,2]
[403009332,1769053840562,-931.14518112,0.0001968,2]
[403009519,1769053843425,-7070.69794995,0.0001968,2]
[403009534,1769053846344,-6000.00000002,0.0001968,2]
[403009535,1769053846355,-3019.1865239,0.0001968,2]
[403009536,1769053846366,-29188.52865537,0.0001968,2]
[403009538,1769054064621,155.0,0.00010559,2]
[403009539,1769054549977,155.0,0.00010559,2]
[403009541,1769055032492,-18769.79291393,0.0001629,2]
[403009542,1769055032546,-380.57647408,0.0001629,2]
[403009635,1769055036423,155.0,0.00010566,2]
[403009647,1769055038462,-399.52869695,0.00016289,2]
[403009648,1769055038518,-140.47130305,0.00016289,2]
[403009649,1769055038528,-500.0,0.00016289,2]
[403009650,1769055038540,-1369.01949963,0.0001629,2]
[403009651,1769055038552,-746.9253651,0.0001629,2]
[403009694,1769055040675,-8991.94434124,0.0001629,2]
[403010017,1769055046756,-2124.21905693,0.0001629,2]
[403010018,1769055125905,-155.13,0.00016289,2]
[403010019,1769055255340,-150.0,0.00014451,2]
[403010020,1769055255368,-427.83,0.000154,10]
[403010021,1769055255396,-195.49337769,0.0001649,2]
[403010022,1769055255423,-300.0,0.0001649,2]
[403010023,1769055255450,-300.0,0.0001649,2]
[403010024,1769055255477,-300.0,0.0001649,2]
[403010025,1769055255503,-1200.0,0.0001649,2]
[403010026,1769055255529,-300.0,0.0001649,2]
[403010027,1769055256534,-2706.90357913,0.00016491,7]
[403010028,1769055256558,-10000.01,0.00016491,7]
[403010029,1769055256573,-10000.01,0.00016491,7]
[403010030,1769055256586,-10000.01,0.00016491,7]
[403010031,1769055256615,-1712.8790301,0.00016491,7]
[403010032,1769055256649,-3425.7580602,0.00016491,7]
[403010033,1769055256678,-3148.4938796,0.00016491,7]
[403010034,1769055256687,-1041.66666667,0.00016491,2]
[403010035,1769055256697,-671.21236343,0.00016509,2]
[403010036,1769055256710,-370.45430324,0.00016509,2]
[403010037,1769055256719,-174.6448192,0.00017541,2]
[403010038,1769055256728,-160.0,0.00017835,3]
[403010039,1769055256737,-160.0,0.00017835,5]
[403010040,1769055305881,-167.35,0.00014483,2]
[403010041,1769055307385,-77.64,0.00014483,2]
[403010042,1769055307409,-133.0,0.00015172,2]
[403010043,1769055381510,-244.99,0.0001448,2]
[403010044,1769055381534,-134.02,0.0001517,2]
[403010045,1769055458109,244.99,8.617e-05,2]
[403010046,1769055458501,489.99,9.027e-05,2]
[403010047,1769055459119,734.98,9.437e-05,2]
[403010048,1769055459536,979.98,9.848e-05,2]
[403010049,1769055460250,1224.97,0.00010258,2]
[403010050,1769055460312,1469.97,0.00010668,2]
[403010051,1769055460727,1714.96,0.00011079,2]
[403010052,1769055461135,1959.95,0.00011489,2]
[403010053,1769055461536,1180.22,0.00011899,2]
[403010054,1769055461559,1024.73,0.00011899,2]
[403010055,1769055461928,2449.94,0.0001231,2]
[403010056,1769055522384,155.0,0.00010577,2]
[403010057,1769055896922,150.0,8.612e-05,2]
[403010058,1769055897306,150.0,9.022e-05,2]
[403010059,1769055897686,220.5,9.432e-05,2]
[403010060,1769055898078,293.99,9.842e-05,2]
[403010061,1769055898516,367.49,0.00010252,2]
[403010062,1769055898914,440.99,0.00010662,2]
[403010063,1769055899325,514.49,0.00011072,2]
[403010064,1769055899729,587.99,0.00011482,2]
[403010065,1769055900152,661.49,0.00011892,2]
[403010066,1769055900640,734.98,0.00012303,2]
[403010067,1769055968533,150.0,8.615e-05,2]
[403010068,1769055968922,150.0,9.025e-05,2]
[403010069,1769055969322,150.0,9.435e-05,2]
[403010070,1769055969868,150.0,9.846e-05,2]
[403010071,1769055970121,150.0,0.00010256,2]
[403010072,1769055970513,150.0,0.00010666,2]
[403010073,1769055970914,150.0,0.00011076,2]
[403010074,1769055971816,168.3,0.00011486,2]
[403010075,1769055972232,189.34,0.00011897,2]
[403010076,1769055972670,210.38,0.00012307,2]
[403010078,1769056164341,150.0,9.199e-05,2]
[403010079,1769056164985,150.0,9.637e-05,2]
[403010080,1769056228667,150.0,8.625e-05,2]
[403010081,1769056229078,150.0,9.036e-05,2]
[403010094,1769056232552,-150.0,0.00014739,2]
[403010095,1769056232561,-295.54528704,0.00015,2]
[403010096,1769056232572,-716.70371433,0.00015,2]
[403010097,1769056232582,-216.2406679,0.00016739,2]
[403010099,1769056232591,-65.05108057,0.00017065,2]
[403010102,1769056232608,-242.22413926,0.00017065,2]
[403010103,1769056232617,-265.51751992,0.00017761,2]
[403010104,1769056232626,-477.93153585,0.00017761,2]
[403010105,1769056232635,-849.65606373,0.00017761,2]
[403010106,1769056232643,-550.5,0.00018066,5]
[403010107,1769056232653,-598.5,0.00018066,5]
[403010108,1769056232662,-403.3567972,0.0001865,2]
[403010109,1769056232671,-159.62665952,0.00018658,2]
[403010110,1769056232680,-1200.0,0.00019056,2]
[403010111,1769056232690,-300.0,0.00019233,2]
[403010112,1769056232700,-292.0,0.00019233,2]
[403010113,1769056232712,-300.0,0.00019233,2]
[403010114,1769056232722,-221.30430997,0.00019522,2]
[403010115,1769056232731,-282.68769021,0.0001968,2]
[403010117,1769056232740,-151.61573737,0.0001968,2]
[403010118,1769056232749,-800.0,0.00019686,2]
[403010120,1769056232758,-800.0,0.00019691,2]
[403010121,1769056232767,-800.0,0.00019734,2]
[403010122,1769056232777,-800.0,0.00019802,2]
[403010123,1769056232786,-623.91106397,0.00019834,2]
[403010124,1769056232795,-2140.34,0.0001985,3]
[403010125,1769056232803,-1070.17,0.0001985,3]
[403010126,1769056232812,-535.08,0.0001985,3]
[403010127,1769056232821,-267.54,0.0001985,3]
[403010128,1769056232830,-802.67,0.0001985,3]
[403010129,1769056232839,-800.0,0.00019859,2]
[403010130,1769056232849,-158.62591321,0.00019859,2]
[403010131,1769056232858,-500.0,0.00019859,2]
[403010132,1769056232866,-500.0,0.00019859,2]
[403010133,1769056232875,-309.45122585,0.00019859,2]
[403010134,1769056232884,-500.0,0.00019859,2]
[403010135,1769056232893,-500.0,0.00019859,2]
[403010136,1769056232902,-500.0,0.00019859,2]
[403010138,1769056232910,-500.0,0.00019859,2]
[403010140,1769056232919,-500.0,0.00019859,2]
[403010142,1769056232928,-558.73122661,0.00019859,2]
[403010143,1769056232937,-500.0,0.00019859,2]
[403010145,1769056232947,-500.0,0.00019859,2]
[403010146,1769056232956,-500.0,0.00019859,2]
[403010147,1769056232966,-500.0,0.00019859,2]
[403010148,1769056232975,-500.0,0.00019859,2]
[403010149,1769056232984,-500.0,0.00019859,2]
[403010150,1769056232993,-500.0,0.00019859,2]
[403010151,1769056233002,-500.0,0.00019859,2]
[403010152,1769056233011,-500.0,0.00019859,2]
[403010153,1769056233020,-439.32773358,0.00019859,2]
[403010154,1769056233029,-500.0,0.00019859,2]
[403010155,1769056233038,-500.0,0.00019859,2]
[403010156,1769056233048,-500.0,0.00019859,2]
[403010157,1769056233056,-500.0,0.00019859,2]
[403010158,1769056233065,-500.0,0.00019859,2]
[403010159,1769056233075,-500.0,0.00019859,2]
[403010160,1769056233084,-500.0,0.00019859,2]
[403010161,1769056233093,-500.0,0.00019859,2]
[403010162,1769056233101,-345953.73386002,0.0001986,2]
[403010194,1769056238576,-178.0,0.00019058,2]
[403010196,1769056238585,-19233.88239062,0.0001986,2]
[403010203,1769056238632,-957.60240792,0.0001986,2]
[403010205,1769056238643,-150557.38537654,0.0001986,2]
[403010350,1769056243760,-22317.45275985,0.0001986,2]
[403010360,1769056246600,-417.0,0.00019058,2]
[403010361,1769056246609,-60167.04,0.0001986,2]
[403010362,1769056246656,-29715.46037486,0.0001986,2]
[403010363,1769056881162,-150.0,0.0001438,2]
[403010364,1769056881186,-27.93998518,0.00015064,2]
[403010365,1769056885087,10000.0,0.00013699,2]
[403010366,1769056910900,-122.06001482,0.00015064,2]
[403010367,1769056910924,-71.33913174,0.00015407,2]
[403010368,1769056942896,0.01,9.647e-05,2]
[403010369,1769056942919,149.99,9.647e-05,2]
[403010370,1769056943356,150.0,0.00010106,2]
[403010371,1769056944295,174.91,0.00010565,2]
[403010372,1769056944702,233.22,0.00011025,2]
[403010373,1769056945089,291.52,0.00011484,2]
[403010374,1769056945510,349.83,0.00011943,2]
[403010375,1769056945920,408.13,0.00012403,2]
[403010376,1769056946340,466.44,0.00012862,2]
[403010377,1769056946852,524.74,0.00013322,2]
[403010378,1769056956183,-163.13746914,0.00013781,2]
[403010379,1769056958162,-384.11,0.00013781,2]
[403010380,1769057013667,150.0,9.654e-05,2]
[403010381,1769057014069,150.0,0.00010114,2]
[403010382,1769057014505,155.23,0.00010574,2]
[403010383,1769057014899,206.97,0.00011034,2]
[403010384,1769057015338,258.71,0.00011493,2]
[403010385,1769057015755,310.46,0.00011953,2]
[403010386,1769057016194,362.2,0.00012413,2]
[403010387,1769057016615,413.94,0.00012872,2]
[403010388,1769057017043,465.69,0.00013332,2]
[403010396,1769057085644,150.0,9.654e-05,2]
[403010397,1769057086363,150.0,0.00010114,2]
[403010398,1769057086481,150.0,0.00010574,2]
[403010399,1769057086976,150.0,0.00011034,2]
[403010400,1769057087364,150.0,0.00011493,2]
[403010401,1769057087776,150.0,0.00011953,2]
[403010402,1769057088161,150.0,0.00012413,2]
[403010403,1769057088573,162.13,0.00012872,2]
[403010404,1769057088989,182.39,0.00013332,2]
[403010405,1769057089761,197.79660053,0.00013792,2]
[403010439,1769057153673,150.0,9.618e-05,2]
[403010440,1769057154341,150.0,0.00010076,2]
[403010441,1769057154481,150.0,0.00010534,2]
[403010442,1769057155024,150.0,0.00010992,2]
[403010443,1769057155460,150.0,0.0001145,2]
[403010444,1769057155871,150.0,0.00011908,2]
[403010445,1769057156299,150.0,0.00012366,2]
[403010446,1769057156723,161.23,0.00012824,2]
[403010447,1769057157155,181.38,0.00013282,2]
[403010448,1769057157568,190.85,0.0001374,2]
[403010449,1769057221940,150.0,8.36e-05,2]
[403010450,1769057222356,150.0,8.758e-05,2]
[403010451,1769057222788,150.0,9.157e-05,2]
[403010452,1769057223195,150.0,9.555e-05,2]
[403010453,1769057223653,150.0,9.953e-05,2]
[403010454,1769057224085,150.0,0.00010351,2]
[403010455,1769057224541,150.0,0.00010749,2]
[403010456,1769057254985,-150.0,0.00015912,2]
[403010457,1769057255008,-307.01028251,0.00016417,2]
[403010458,1769057300157,-150.0,0.00014369,2]
[403010459,1769057300181,-146.91475649,0.00015054,2]
[403010460,1769057301791,-3.08524351,0.00015054,2]
[403010461,1769057301815,-150.0,0.00015738,2]
[403010462,1769057301836,-101.89487344,0.00016022,2]
[403010489,1769057431679,-150.0,0.00014887,2]
[403010491,1769057431700,-634.0,0.00014887,2]
[403010493,1769057431721,-149.0,0.00015596,2]
[403010523,1769057437668,-1.0,0.00015596,2]
[403010525,1769057437677,-150.0,0.00016305,2]
[403010527,1769057437686,-168.31,0.00017013,2]
[403010529,1769057437695,-159.62665953,0.00017028,2]
[403010531,1769057437704,-101.58853993,0.00017455,2]
[403010532,1769057437715,-169.15777102,0.00017455,2]
[403010534,1769057437724,-270.74631095,0.00017526,2]
[403010536,1769057437733,-270.74631095,0.00017598,2]
[403010538,1769057437742,-270.74631095,0.00017669,2]
[403010540,1769057437751,-210.39,0.00017722,2]
[403010542,1769057437760,-270.74631095,0.00017741,2]
[403010544,1769057437769,-270.74631095,0.00017812,2]
[403010546,1769057437778,-177.0,0.00017912,2]
[403010548,1769057437787,-252.47,0.00018431,2]
[403010550,1769057437796,-351.42878942,0.00018502,2]
[403010553,1769057437812,-848.57121058,0.00018502,2]
[403010555,1769057437822,-300.0,0.00018503,2]
[403010557,1769057437831,-300.0,0.00018503,2]
[403010558,1769057437840,-300.0,0.00018503,2]
[403010560,1769057437849,-500.0,0.00018504,2]
[403010561,1769057437858,-500.0,0.00018504,2]
[403010563,1769057437867,-193.78210855,0.00018504,2]
[403010565,1769057437877,-500.0,0.00018504,2]
[403010567,1769057437886,-500.0,0.00018504,2]
[403010568,1769057437895,-500.0,0.00018504,2]
[403010570,1769057437904,-500.0,0.00018504,2]
[403010571,1769057437913,-493.25863706,0.00018504,2]
[403010572,1769057437923,-500.0,0.00018504,2]
[403010573,1769057437932,-500.0,0.00018504,2]
[403010574,1769057437941,-500.0,0.00018504,2]
[403010575,1769057437951,-500.0,0.00018504,2]
[403010576,1769057437960,-197.04753568,0.00018504,2]
[403010577,1769057437970,-500.0,0.00018504,2]
[403010578,1769057437979,-500.0,0.00018504,2]
[403010579,1769057437988,-500.0,0.00018504,2]
[403010580,1769057437998,-500.0,0.00018504,2]
[403010581,1769057438007,-500.0,0.00018504,2]
[403010582,1769057438016,-500.0,0.00018504,2]
[403010583,1769057438026,-500.0,0.00018504,2]
[403010584,1769057438035,-500.0,0.00018504,2]
[403010585,1769057438044,-500.0,0.00018504,2]
[403010586,1769057438054,-500.0,0.00018504,2]
[403010587,1769057438063,-500.0,0.00018504,2]
[403010588,1769057438073,-500.0,0.00018504,2]
[403010589,1769057438083,-500.0,0.00018504,2]
[403010590,1769057438093,-387.74912266,0.00018504,2]
[403010591,1769057438102,-500.0,0.00018504,2]
[403010592,1769057438112,-500.0,0.00018504,2]
[403010593,1769057438121,-500.0,0.00018504,2]
[403010594,1769057438131,-500.0,0.00018504,2]
[403010595,1769057438140,-500.0,0.00018504,2]
[403010596,1769057438149,-500.0,0.00018504,2]
[403010597,1769057438159,-500.0,0.00018504,2]
[403010598,1769057438168,-500.0,0.00018504,2]
[403010599,1769057438177,-500.0,0.00018504,2]
[403010600,1769057438187,-500.0,0.00018504,2]
[403010601,1769057438196,-500.0,0.00018504,2]
[403010602,1769057438205,-500.0,0.00018504,2]
[403010603,1769057438215,-514.32021207,0.00018504,2]
[403010604,1769057438224,-21280.01471703,0.00018505,3]
[403010605,1769057438235,-40879.4547909,0.00018505,3]
[403010606,1769057438245,-189.0,0.000187,7]
[403010607,1769057438255,-223.19130124,0.00018712,3]
[403010608,1769057438264,-1532.28,0.00018795,3]
[403010609,1769057438273,-766.14,0.00018795,3]
[403010610,1769057438282,-383.07,0.00018795,3]
[403010611,1769057438291,-191.54,0.00018795,3]
[403010612,1769057438301,-574.63,0.00018795,3]
[403010613,1769057438310,-230.03132048,0.00018804,2]
[403010614,1769057438319,-297713.00611803,0.00018805,2]
[403010615,1769057438334,-6298.74026498,0.00018805,2]
[403010616,1769057438837,-695988.25361699,0.00018805,2]
[403010617,1769057438847,-40429.23,0.00018905,2]
[403010618,1769057438856,-294.54,0.0001914,2]
[403010619,1769057438865,-151.0,0.00019178,2]
[403010620,1769057438875,-151.0,0.00019178,2]
[403010621,1769057438884,-151.0,0.00019178,2]
[403010622,1769057438893,-151.0,0.00019178,2]
[403010623,1769057438903,-151.0,0.00019178,2]
[403010624,1769057438912,-151.0,0.00019178,2]
[403010625,1769057438922,-285.661695,0.00019178,2]
[403010626,1769057438934,-151.0,0.00019178,2]
[403010627,1769057438944,-151.0,0.00019178,2]
[403010628,1769057438955,-151.0,0.00019178,2]
[403010629,1769057438965,-151.0,0.00019178,2]
[403010630,1769057438975,-151.0,0.00019178,2]
[403010631,1769057438984,-151.0,0.00019178,2]
[403010632,1769057438994,-151.0,0.00019178,2]
[403010633,1769057439003,-151.0,0.00019178,2]
[403010634,1769057439018,-239.22425,0.00019178,2]
[403010635,1769057439034,-239.22425,0.00019178,2]
[403010636,1769057439044,-239.22425,0.00019178,2]
[403010637,1769057439053,-239.22425,0.00019178,2]
[403010638,1769057439069,-151.0,0.00019178,2]
[403010639,1769057439086,-252.65247,0.00019178,2]
[403010640,1769057439096,-151.0,0.00019178,2]
[403010641,1769057439106,-252.65247,0.00019178,2]
[403010642,1769057439117,-252.65247,0.00019178,2]
[403010643,1769057439127,-151.0,0.00019178,2]
[403010644,1769057439137,-252.65247,0.00019178,2]
[403010645,1769057439147,-168.674893,0.00019178,2]
[403010646,1769057439157,-168.674893,0.00019178,2]
[403010647,1769057439167,-168.674893,0.00019178,2]
[403010648,1769057439176,-168.674893,0.00019178,2]
[403010649,1769057439186,-157.918352,0.00019178,2]
[403010650,1769057439209,-157.918352,0.00019178,2]
[403010651,1769057439221,-157.918352,0.00019178,2]
[403010652,1769057439232,-157.918352,0.00019178,2]
[403010653,1769057439242,-373.872213,0.00019178,2]
[403010654,1769057439251,-373.872213,0.00019178,2]
[403010655,1769057439261,-373.872213,0.00019178,2]
[403010657,1769057439270,-373.872213,0.00019178,2]
[403010658,1769057439281,-153.5548493,0.00019629,2]
[403010659,1769057439291,-800.0,0.00019739,2]
[403010660,1769057439300,-336.62,0.00019849,2]
[403010661,1769057439310,-172.14173605,0.00019912,2]
[403010662,1769057439319,-1000.0,0.0001994,5]
[403010663,1769057439333,-1000.0,0.0001996,5]
[403010664,1769057439343,-1000.0,0.0001998,5]
[403010665,1769057439353,-500.0,0.00019999,2]
[403010666,1769057439363,-500.0,0.00019999,2]
[403010667,1769057439373,-497.15009281,0.00019999,2]
[403010668,1769057439383,-3011.0,0.0002,2]
[403010669,1769057439393,-13933.49101661,0.0002,2]
[403010670,1769057439402,-14711.21607363,0.0002,2]
[403010671,1769057439411,-254.13752715,0.0002,21]
[403010672,1769057439420,-40737.22647146,0.0002,2]
[403010673,1769057439430,-371.8582033,0.0002,2]
[403010674,1769057439439,-1009.76577816,0.0002,2]
[403010675,1769057439448,-21581.28482924,0.0002,2]
[403010676,1769057439460,-1022.71517076,0.0002,2]
[403010677,1769057439470,-202.869484,0.0002,2]
[403010678,1769057439480,-6866.38447026,0.0002,7]
[403010680,1769057439491,-7659.03353216,0.0002,7]
[403010682,1769057439502,-500.0,0.0002,7]
[403010738,1769057440061,-1320.735,0.0002,7]
[403010969,1769057442616,-3e-08,0.0002,7]
[403010994,1769057442857,-7411.0216273,0.0002,7]
[403011016,1769057445571,150.0,9.612e-05,2]
[403011017,1769057445838,-417.0,0.00019368,2]
[403011018,1769057445848,-7141.27995473,0.0002,7]
[403011019,1769057445944,-51784.54541552,0.0002,7]
[403011020,1769057445953,-17955.03466055,0.0002,2]
[403011021,1769057445963,-154.82725501,0.0002,2]